bitfinex-derivatives/quotes_ETHF0:USTF0_20240913
["timestamp","ask_amount","ask_price","bid_price","bid_amount"]
[1726236328398,0.42387,2359.1,2358.9,3.63169]
[1726236328601,0.42386,2359.2,2359.0,0.42388]
[1726236328907,0.42387,2359.1,2358.9,3.63169]
[1726236329212,0.3979,2359.3,2358.9,3.63169]
[1726236329500,0.42388,2359.0,2358.9,3.2078]
[1726236329704,0.42387,2359.1,2359.0,0.42388]
[1726236329908,0.42388,2359.0,2358.9,3.6317]
[1726236330104,0.3979,2359.3,2358.5,3.5948]
[1726236330309,0.42395,2358.6,2358.5,3.2078]
[1726236330502,0.42394,2358.7,2358.5,3.63175]
[1726236330710,0.42395,2358.6,2358.5,3.2078]
[1726236331099,0.42395,2358.6,2358.5,3.63177]
[1726236331303,0.42395,2358.6,2358.5,3.2078]
[1726236332704,0.42395,2358.6,2358.5,3.63177]
[1726236333007,0.42394,2358.7,2358.6,0.42395]
[1726236333213,1.05977,2358.9,2358.5,3.63176]
[1726236333403,0.42395,2358.7,2358.5,3.63176]
[1726236333906,3.2078,2359.4,2359.2,0.42385]
[1726236334107,0.42382,2359.4,2359.2,0.42383]
[1726236334299,0.42385,2359.2,2359.1,0.42385]
[1726236334499,4.26733,2359.4,2358.9,0.4239]
[1726236334709,1.05958,2359.3,2358.8,0.3696]
[1726236335010,0.42385,2359.2,2358.8,0.3696]
[1726236335216,0.42389,2359.0,2358.8,0.79351]
[1726236335512,0.4239,2358.9,2358.8,0.3696]
[1726236335705,4.26742,2359.2,2358.8,0.42392]
[1726236335906,4.26742,2359.2,2358.6,0.4087]
[1726236335907,1.05967,2359.1,2358.6,0.4087]
[1726236336215,0.42391,2358.9,2358.7,0.42393]
[1726236336512,0.42392,2358.8,2358.7,3.63173]
[1726236336710,0.42392,2358.8,2358.6,0.83264]
[1726236336916,0.42389,2359.0,2358.8,0.42391]
[1726236337211,0.7918,2359.4,2358.7,3.2078]
[1726236337401,1.05961,2359.3,2358.9,0.4239]
[1726236337605,0.42388,2359.1,2358.9,0.42389]
[1726236337802,1.05961,2359.3,2358.9,0.42389]
[1726236338105,0.3817,2359.4,2358.7,7.2878]
[1726236338406,0.3735,2359.5,2359.4,0.42381]
[1726236338604,0.42377,2359.7,2359.3,3.2078]
[1726236338805,0.42374,2359.8,2359.5,0.42378]
[1726236339206,3.2078,2359.9,2359.4,0.42381]
[1726236339613,0.42375,2359.8,2359.5,0.42379]
[1726236339802,3.63153,2359.9,2359.5,0.42379]
[1726236340008,3.63152,2359.9,2359.3,3.2078]
[1726236340207,3.2078,2359.9,2359.7,0.42375]
[1726236340408,0.3765,2360.0,2359.8,0.42374]
[1726236340713,1.46226,2360.3,2359.6,7.2878]
[1726236340714,0.4031,2360.3,2359.6,7.2878]
[1726236340909,0.4031,2360.3,2359.8,0.42372]
[1726236340910,0.42367,2360.2,2359.8,0.42372]
[1726236341110,0.4031,2360.3,2359.9,0.42371]
[1726236341312,3.5912,2360.4,2359.9,0.42371]
[1726236341313,0.42367,2360.2,2359.9,0.42371]
[1726236341612,0.42365,2360.3,2359.7,0.4077]
[1726236341913,0.81919,2360.7,2360.3,0.42364]
[1726236342121,0.81919,2360.7,2360.2,3.2078]
[1726236342122,0.3956,2360.7,2360.2,7.2878]
[1726236342412,1.85333,2361.2,2360.3,0.3991]
[1726236342413,3.6034,2361.1,2360.3,0.3991]
[1726236342619,0.42357,2360.8,2360.3,0.3991]
[1726236343011,3.6034,2361.1,2360.3,0.82274]
[1726236343207,3.6034,2361.1,2360.4,0.42363]
[1726236343419,0.42357,2360.8,2360.4,0.42363]
[1726236343916,0.42355,2360.9,2360.5,0.42361]
[1726236344122,0.3956,2361.1,2360.5,7.2878]
[1726236344419,0.42348,2361.3,2360.8,7.71134]
[1726236344609,0.79796,2361.4,2361.0,0.42351]
[1726236344918,0.79796,2361.4,2360.8,7.2878]
[1726236344919,0.42348,2361.3,2360.9,0.42353]
[1726236345108,0.42348,2361.3,2360.9,0.42354]
[1726236345415,0.42348,2361.3,2360.8,3.63134]
[1726236345416,0.42347,2361.3,2360.8,3.63134]
[1726236345612,0.3745,2361.4,2360.8,3.2078]
[1726236346016,0.42348,2361.3,2360.7,0.42357]
[1726236346315,0.3745,2361.4,2360.8,3.2078]
[1726236346316,0.79796,2361.4,2360.8,3.2078]
[1726236346516,0.79796,2361.4,2360.9,0.42353]
[1726236346815,0.79796,2361.4,2360.8,3.63135]
[1726236347218,0.79796,2361.4,2360.9,0.42354]
[1726236347609,0.79796,2361.4,2360.5,7.2878]
[1726236347610,0.3745,2361.4,2360.5,7.2878]
[1726236347915,0.3745,2361.4,2360.4,0.3942]
[1726236347916,3.2078,2360.9,2360.3,0.3991]
[1726236348118,3.2078,2361.3,2360.4,0.42361]
[1726236348317,0.42349,2361.2,2360.7,4.08]
[1726236348515,0.42349,2361.2,2360.7,4.50358]
[1726236348717,0.3745,2361.4,2360.7,4.08]
[1726236349019,0.79796,2361.4,2360.8,0.42355]
[1726236349221,0.79796,2361.4,2360.9,3.2078]
[1726236349718,0.42347,2361.3,2360.9,3.2078]
[1726236349915,0.79796,2361.4,2360.9,3.2078]
[1726236350108,0.42347,2361.3,2360.9,3.2078]
[1726236350309,0.42349,2361.2,2360.9,3.2078]
[1726236350511,4.2352,2361.3,2360.4,3.6083]
[1726236350714,1.43314,2361.4,2360.3,4.03054]
[1726236350715,0.42353,2361.0,2360.3,4.03054]
[1726236351010,0.42359,2360.7,2360.3,3.6069]
[1726236351207,3.5778,2360.9,2360.0,3.2078]
[1726236351415,4.00135,2360.9,2360.3,3.63144]
[1726236351612,0.37,2360.9,2360.4,0.42363]
[1726236352216,0.79354,2360.9,2360.4,0.42363]
[1726236352531,0.79354,2360.9,2360.3,3.63144]
[1726236353016,0.37,2360.9,2360.3,3.2078]
[1726236353215,0.377,2360.8,2360.3,3.2078]
[1726236353417,3.2078,2361.7,2360.7,7.2878]
[1726236353620,3.2078,2361.7,2361.0,3.2078]
[1726236353621,0.377,2361.5,2361.0,3.2078]
[1726236353919,0.377,2361.5,2361.0,0.42352]
[1726236354119,0.377,2361.5,2361.1,0.42349]
[1726236354313,0.42337,2361.9,2361.3,0.42346]
[1726236354517,3.2078,2362.0,2361.3,3.63126]
[1726236354714,0.42338,2361.8,2361.3,0.42346]
[1726236354910,0.42336,2362.0,2361.6,3.2078]
[1726236355114,0.42336,2362.0,2360.8,0.7844]
[1726236355115,3.963,2362.1,2361.3,3.2078]
[1726236355318,3.2078,2361.8,2361.3,3.2078]
[1726236355527,0.42341,2361.7,2361.3,3.2078]
[1726236356012,3.2078,2361.8,2361.3,3.2078]
[1726236356013,3.63119,2361.8,2361.3,3.2078]
[1726236356323,0.4234,2361.7,2361.3,3.2078]
[1726236356624,0.42337,2361.9,2361.3,3.63126]
[1726236357026,3.963,2362.1,2361.3,3.63126]
[1726236357219,3.963,2362.1,2361.3,3.2078]
[1726236357414,3.963,2362.1,2361.3,3.63127]
[1726236357415,0.42338,2361.9,2361.3,3.63127]
[1726236357620,5.02134,2362.1,2361.3,3.2078]
[1726236357817,0.4234,2361.7,2361.3,3.2078]
[1726236358025,3.2078,2361.4,2360.8,0.3896]
[1726236358323,1.05824,2362.3,2360.6,3.4218]
[1726236358324,0.7694,2361.3,2360.6,3.2078]
[1726236358518,0.7694,2361.3,2360.7,4.08]
[1726236358826,0.7694,2361.3,2360.9,0.42354]
[1726236359030,0.7694,2361.3,2360.9,3.2078]
[1726236359330,0.7694,2361.3,2360.7,0.42357]
[1726236359625,0.7694,2361.3,2360.6,3.2078]
[1726236359822,0.42351,2361.1,2360.6,3.63139]
[1726236360217,3.9772,2361.3,2360.6,3.2078]
[1726236360519,0.7694,2361.3,2360.6,3.2078]
[1726236360724,0.3944,2361.3,2361.0,0.42351]
[1726236360911,0.3944,2361.3,2361.0,0.42352]
[1726236361112,0.3944,2361.3,2360.9,0.42353]
[1726236361313,0.3944,2361.3,2361.0,0.42352]
[1726236361922,0.3944,2361.3,2360.8,3.2078]
[1726236362128,0.4234,2361.7,2361.1,3.2078]
[1726236362424,0.42339,2361.8,2361.1,3.2078]
[1726236362733,3.9654,2362.0,2361.0,3.2078]
[1726236363020,3.2078,2361.6,2361.0,3.2078]
[1726236363220,1.05855,2361.6,2361.0,3.2078]
[1726236363422,0.42348,2361.3,2361.0,3.2078]
[1726236363622,0.4235,2361.2,2361.0,3.2078]
[1726236363824,0.4235,2361.2,2360.3,7.2878]
[1726236363825,3.2078,2361.2,2360.3,7.2878]
[1726236364023,4.9851,2361.4,2360.4,0.42362]
[1726236364024,0.42357,2360.8,2360.4,0.42362]
[1726236364226,0.42357,2360.8,2360.3,3.2078]
[1726236364227,0.42363,2360.5,2360.3,3.2078]
[1726236364435,1.05891,2360.8,2360.3,3.2078]
[1726236364436,0.4236,2360.6,2360.3,3.2078]
[1726236364727,1.20739,2360.7,2360.3,3.63145]
[1726236364925,0.7838,2360.7,2360.4,0.42363]
[1726236365132,0.42353,2361.0,2360.6,0.42358]
[1726236365327,0.8271,2361.2,2360.8,0.42355]
[1726236365529,0.4036,2361.2,2360.7,0.4013]
[1726236365718,0.4036,2361.2,2360.8,0.42356]
[1726236365719,0.8271,2361.2,2360.8,0.42356]
[1726236365921,0.4036,2361.2,2360.6,7.2878]
[1726236366126,0.4036,2361.2,2360.6,3.2078]
[1726236366332,0.42355,2360.9,2360.6,3.2078]
[1726236366828,0.42353,2361.0,2360.6,3.63139]
[1726236367033,0.42351,2361.1,2360.7,4.08]
[1726236367230,4.146,2361.5,2361.0,3.2078]
[1726236367543,0.42345,2361.5,2361.2,0.42349]
[1726236367719,1.05855,2361.6,2360.8,0.4087]
[1726236367921,3.2078,2361.3,2360.7,3.2078]
[1726236368125,0.3912,2361.4,2360.4,7.2878]
[1726236368126,0.4007,2361.2,2360.4,7.2878]
[1726236368327,0.42357,2360.8,2360.4,7.2878]
[1726236368527,0.4012,2361.1,2360.4,7.2878]
[1726236368730,0.4012,2361.1,2361.0,4.08]
[1726236369031,0.81466,2361.4,2361.0,0.42351]
[1726236369329,0.4012,2361.5,2361.1,0.42349]
[1726236369523,0.4012,2361.5,2361.2,0.42348]
[1726236370125,0.42339,2361.8,2361.3,0.42346]
[1726236370432,0.42339,2361.8,2361.2,3.2078]
[1726236370433,0.4009,2361.9,2361.2,3.2078]
[1726236370732,0.82427,2361.9,2361.5,0.42343]
[1726236370930,0.82427,2361.9,2361.4,0.42344]
[1726236370931,0.4009,2361.9,2361.4,0.42344]
[1726236371127,0.42339,2361.8,2361.3,0.42346]
[1726236371427,0.4009,2361.9,2361.2,3.2078]
[1726236371627,0.4009,2361.9,2361.3,0.42346]
[1726236371628,0.42339,2361.8,2361.3,0.42346]
[1726236371930,0.42339,2361.8,2361.2,3.2078]
[1726236372127,0.42339,2361.8,2361.4,0.42345]
[1726236372431,0.7633,2362.0,2361.5,3.2078]
[1726236372432,0.42335,2362.0,2361.5,3.2078]
[1726236372634,0.42335,2362.0,2361.3,4.08]
[1726236372635,3.6087,2362.1,2361.4,0.42344]
[1726236372833,3.6087,2362.1,2361.3,4.08]
[1726236373030,0.42342,2361.6,2361.2,3.2078]
[1726236373229,0.4009,2361.5,2361.1,0.8024]
[1726236373427,0.82434,2361.5,2361.1,0.8024]
[1726236373627,0.42348,2361.3,2361.0,4.08]
[1726236373835,0.42348,2361.3,2360.9,3.2078]
[1726236374027,0.4009,2361.5,2360.9,3.2078]
[1726236374229,0.42351,2361.1,2360.8,4.08]
[1726236374522,0.42351,2361.1,2360.5,4.198]
[1726236374523,0.42355,2360.9,2360.5,4.198]
[1726236374734,0.82843,2361.0,2360.3,3.6135]
[1726236375032,0.4049,2361.0,2360.7,0.42358]
[1726236375229,0.4049,2361.0,2360.4,4.08]
[1726236375426,7.3538,2361.4,2360.6,3.2078]
[1726236375629,1.45952,2361.5,2360.4,4.50362]
[1726236375630,0.42356,2360.8,2360.4,4.50362]
[1726236375831,0.3792,2360.9,2360.4,4.08]
[1726236376139,0.4049,2361.3,2360.6,3.2078]
[1726236376337,0.82838,2361.3,2360.9,0.42354]
[1726236376533,3.5893,2361.4,2360.9,3.2078]
[1726236376732,0.4068,2361.7,2361.0,8.3152]
[1726236376733,3.2078,2361.7,2361.0,8.3152]
[1726236376930,0.42335,2362.0,2361.3,4.08]
[1726236377125,0.42336,2361.9,2361.4,3.2078]
[1726236377331,0.42338,2361.8,2361.4,3.63124]
[1726236377541,3.2078,2362.0,2361.4,3.63124]
[1726236377735,0.42337,2361.9,2361.4,3.63124]
[1726236377928,0.42336,2362.0,2361.4,3.2078]
[1726236378131,0.42337,2361.9,2361.4,3.63125]
[1726236378438,0.42337,2361.9,2361.5,0.42343]
[1726236378636,0.42337,2361.9,2361.4,3.63124]
[1726236379032,0.42339,2361.8,2361.4,3.2078]
[1726236379227,0.3815,2361.8,2361.5,0.42343]
[1726236379630,0.3815,2361.8,2361.4,3.2078]
[1726236379830,0.3815,2361.8,2361.4,3.63123]
[1726236380032,0.3815,2361.8,2361.5,0.42343]
[1726236380831,0.3815,2361.8,2361.4,3.6039]
[1726236380832,0.4234,2361.7,2361.4,3.6039]
[1726236381040,0.7887,2361.8,2361.4,0.3961]
[1726236381233,3.63121,2361.7,2361.0,3.2078]
[1726236381434,0.7887,2361.8,2361.1,0.42349]
[1726236381640,0.42342,2361.6,2361.2,0.42348]
[1726236381840,0.42342,2361.6,2361.3,3.2078]
[1726236382035,1.05835,2362.1,2361.3,3.2078]
[1726236382341,5.4109351,2362.3,2361.3,3.2078]
[1726236382342,0.7817,2362.0,2361.3,7.2878]
[1726236382557,0.7817,2362.0,2361.7,0.42339]
[1726236382844,0.7817,2362.0,2361.4,0.7976]
[1726236383035,1.20505,2362.0,2361.6,0.4234]
[1726236383237,1.20505,2362.0,2361.6,0.42341]
[1726236383438,1.20505,2362.0,2361.6,3.63121]
[1726236384643,0.3745,2362.0,2361.6,3.2078]
[1726236384846,0.42332,2362.2,2361.8,0.42337]
[1726236385042,4.146,2362.3,2361.9,3.2078]
[1726236385043,0.4077,2362.3,2361.9,3.2078]
[1726236385443,0.42331,2362.2,2361.8,0.42337]
[1726236385643,0.42331,2362.2,2361.9,0.42336]
[1726236385844,0.4077,2362.3,2362.0,0.42333]
[1726236386040,2.2031351,2362.5,2361.9,3.2078]
[1726236386241,2.2031351,2362.7,2362.6,0.42324]
[1726236386549,3.2078,2363.4,2362.6,0.42324]
[1726236386550,2.7191531,2363.7,2363.2,0.42312]
[1726236386741,2.7191531,2363.8,2363.6,0.42305]
[1726236386941,4.08234289,2364.3,2363.4,4.08]
[1726236386942,0.42306,2363.6,2363.4,4.08]
[1726236387141,2.7191531,2364.2,2363.4,4.08]
[1726236387142,3.2078,2364.0,2363.4,4.08]
[1726236387341,0.42303,2363.8,2363.4,4.08]
[1726236387545,3.2078,2363.9,2363.1,7.2878]
[1726236387848,0.42305,2363.7,2363.1,7.2878]
[1726236388048,2.20701909,2364.0,2363.1,7.2878]
[1726236388244,2.20701909,2364.2,2363.4,7.2878]
[1726236388446,4.2652,2364.2,2363.4,4.08]
[1726236388656,0.42299,2364.0,2363.4,7.71088]
[1726236388948,0.42298,2364.1,2363.5,0.42307]
[1726236389154,0.42298,2364.1,2363.4,7.2878]
[1726236389349,3.2078,2364.2,2363.4,7.2878]
[1726236389540,0.42292,2364.4,2363.8,0.42301]
[1726236390253,0.3736,2364.5,2363.7,7.2878]
[1726236390548,3.2078,2364.9,2364.0,4.08]
[1726236391346,1.05711,2364.8,2364.2,3.2078]
[1726236391542,0.42294,2364.3,2363.9,3.2078]
[1726236391745,0.3808,2364.7,2364.1,0.42296]
[1726236391944,0.3808,2364.7,2364.2,3.2078]
[1726236392153,0.42282,2365.0,2364.2,3.2078]
[1726236392352,3.5848,2365.1,2364.3,0.3849]
[1726236392745,0.42283,2364.9,2364.3,0.3849]
[1726236392941,0.42283,2364.9,2364.4,0.4229]
[1726236393146,3.5848,2365.1,2364.3,0.3849]
[1726236393147,0.42286,2364.8,2364.3,0.3849]
[1726236393344,0.42286,2364.8,2364.2,3.2078]
[1726236393345,1.05707,2364.9,2364.2,3.63075]
[1726236393544,0.42289,2364.6,2364.2,3.2078]
[1726236393755,0.42291,2364.5,2364.2,3.2078]
[1726236393943,0.42286,2364.7,2364.2,3.2078]
[1726236394251,1.0572,2364.6,2363.9,3.2078]
[1726236394451,0.4053,2364.6,2363.9,3.2078]
[1726236394656,0.42293,2364.4,2363.9,3.6308]
[1726236394855,0.4053,2364.6,2363.7,4.4579]
[1726236394856,3.2078,2364.3,2363.7,4.4579]
[1726236395152,0.42294,2364.3,2363.8,3.63082]
[1726236395343,4.26505,2364.5,2363.7,4.4579]
[1726236395344,3.2078,2364.5,2363.7,4.4579]
[1726236395541,0.42294,2364.3,2363.7,4.4579]
[1726236395855,0.4053,2364.6,2363.8,3.2078]
[1726236396054,0.4229,2364.5,2363.8,3.2078]
[1726236396248,0.4053,2364.6,2364.1,3.2078]
[1726236396652,1.05718,2364.7,2364.1,3.2078]
[1726236396653,3.2078,2364.8,2364.1,3.2078]
[1726236396849,3.63066,2364.8,2364.3,0.42292]
[1726236397154,0.42284,2364.9,2364.4,3.6307]
[1726236397449,0.80881,2365.0,2364.4,3.2078]
[1726236397652,0.80881,2365.0,2364.5,0.42289]
[1726236397653,0.386,2365.0,2364.5,0.42289]
[1726236397949,0.80881,2365.0,2364.6,0.42287]
[1726236398149,0.80881,2365.0,2364.4,3.5998]
[1726236398150,0.386,2365.0,2364.4,3.5998]
[1726236398548,3.6306,2365.1,2364.7,0.42286]
[1726236398745,0.3846,2365.4,2364.4,3.5998]
[1726236398951,0.42276,2365.3,2364.8,0.42283]
[1726236399154,3.2078,2365.5,2365.1,0.42278]
[1726236399353,3.2078,2365.5,2365.0,3.2078]
[1726236399561,3.2078,2365.5,2365.1,4.228]
[1726236399854,3.2078,2366.0,2365.4,3.2078]
[1726236400046,0.42278,2365.2,2365.0,3.2078]
[1726236400351,4.26456,2365.6,2364.7,3.2078]
[1726236400551,0.42271,2365.6,2365.0,3.6306]
[1726236400752,0.42271,2365.6,2365.0,3.2078]
[1726236400753,3.63051,2365.6,2365.0,3.2078]
[1726236401152,3.2078,2365.6,2365.0,3.2078]
[1726236401348,3.2078,2365.3,2364.9,4.50282]
[1726236401550,3.2078,2365.3,2365.1,0.42278]
[1726236401752,0.781,2365.9,2365.1,6.0]
[1726236401753,3.2078,2365.6,2365.1,6.0]
[1726236402052,3.2078,2365.6,2365.1,0.42278]
[1726236402351,3.2078,2365.6,2365.0,3.577]
[1726236402748,3.2078,2365.6,2365.0,3.99979]
[1726236402948,3.63051,2365.6,2365.0,3.577]
[1726236403159,3.2078,2366.1,2365.1,0.42279]
[1726236403352,0.4093,2366.0,2365.3,3.2078]
[1726236403554,3.2078,2365.8,2365.3,3.63055]
[1726236403764,3.2078,2365.8,2365.3,3.2078]
[1726236404059,0.4093,2366.0,2365.4,0.42274]
[1726236404258,3.2078,2365.8,2365.4,0.42272]
[1726236404451,3.2078,2365.8,2365.3,3.5888]
[1726236404652,3.2078,2365.8,2365.5,4.08]
[1726236404963,3.2078,2366.6,2365.6,3.2078]
[1726236405254,0.3834,2366.9,2366.2,3.2078]
[1726236405847,0.3834,2366.9,2366.4,0.42254]
[1726236406051,0.3834,2366.9,2366.2,3.2078]
[1726236406052,3.2078,2366.7,2366.2,3.2078]
[1726236406254,0.3834,2366.9,2366.1,3.2078]
[1726236406454,4.26402,2366.8,2365.8,3.2078]
[1726236406657,0.42258,2366.3,2365.8,3.2078]
[1726236406860,3.2078,2366.4,2365.7,4.4526]
[1726236407156,3.2078,2366.4,2365.8,0.42266]
[1726236407465,3.63036,2366.4,2365.9,0.42263]
[1726236407649,3.2078,2366.4,2365.7,4.4526]
[1726236407854,3.2078,2366.4,2366.0,0.42262]
[1726236408049,3.2078,2366.8,2365.8,3.2078]
[1726236408259,0.42255,2366.5,2365.8,3.2078]
[1726236408456,3.63034,2366.5,2366.0,0.42261]
[1726236408957,0.3834,2366.9,2366.1,3.2078]
[1726236409161,3.2078,2366.7,2366.1,3.2078]
[1726236409362,0.42253,2366.6,2366.1,3.2078]
[1726236409554,0.42254,2366.5,2366.1,3.2078]
[1726236409755,0.42253,2366.6,2366.1,3.63041]
[1726236409953,3.2078,2366.7,2366.1,3.2078]
[1726236410260,3.5807,2367.1,2366.3,4.08]
[1726236410466,3.2078,2367.1,2366.4,3.2078]
[1726236410862,3.2078,2367.1,2366.4,0.4004]
[1726236410863,0.42248,2366.9,2366.4,0.4004]
[1726236411067,0.42246,2367.0,2366.3,4.08]
[1726236411267,0.42243,2367.2,2366.7,0.4225]
[1726236411465,3.2078,2367.0,2366.4,3.2078]
[1726236412058,3.2078,2367.0,2366.7,0.4225]
[1726236412259,3.2078,2367.0,2366.6,0.42251]
[1726236412660,3.63026,2367.0,2366.5,0.42253]
[1726236412864,3.2078,2367.0,2366.7,0.42249]
[1726236413473,0.42242,2367.2,2366.4,3.2078]
[1726236413670,3.2078,2367.3,2366.7,0.4225]
[1726236413864,3.2078,2367.0,2366.6,0.42251]
[1726236414165,1.05606,2367.2,2366.4,3.63035]
[1726236414369,0.42249,2366.8,2366.4,3.63035]
[1726236414562,3.2078,2366.9,2366.4,3.2078]
[1726236414563,0.42251,2366.7,2366.4,3.2078]
[1726236414768,3.2078,2366.9,2366.3,3.2078]
[1726236414957,3.2078,2366.9,2366.3,0.42256]
[1726236414958,0.3914,2366.6,2366.3,0.42256]
[1726236415162,0.7735,2366.9,2366.3,0.42257]
[1726236415163,1.43169,2366.9,2366.3,0.42257]
[1726236415465,3.2078,2366.8,2366.3,4.08]
[1726236415864,0.42246,2367.0,2366.6,3.63031]
[1726236416065,0.3914,2367.2,2366.7,0.4225]
[1726236416259,0.3914,2367.2,2366.8,0.42248]
[1726236416458,0.3914,2367.2,2366.7,0.42249]
[1726236416661,1.05633,2366.6,2365.7,0.214]
[1726236416858,3.2078,2366.3,2365.4,3.2078]
[1726236417059,4.26444,2365.9,2365.4,3.2078]
[1726236417270,3.2078,2365.9,2365.4,3.2078]
[1726236417472,3.2078,2365.6,2365.0,7.66]
[1726236417863,3.2078,2365.6,2365.4,0.42273]
[1726236418058,3.2078,2365.6,2365.1,4.228]
[1726236418261,3.2078,2365.6,2365.3,0.42275]
[1726236418463,3.2078,2365.6,2365.1,1.05698]
[1726236418764,0.3883,2365.8,2365.6,0.42269]
[1726236419456,0.3883,2365.8,2365.3,7.2878]
[1726236419658,0.3883,2365.8,2365.5,0.42271]
[1726236419871,0.4226,2366.2,2365.6,3.2078]
[1726236420170,0.4226,2366.2,2365.8,0.42265]
[1726236420373,0.42261,2366.2,2365.8,0.42265]
[1726236420568,3.2078,2366.1,2365.3,7.2878]
[1726236420775,3.2078,2366.1,2365.8,0.42265]
[1726236421066,0.3796,2366.4,2365.6,3.2078]
[1726236421267,3.2078,2366.1,2365.3,5.13688]
[1726236421663,3.2078,2366.1,2365.3,4.08]
[1726236421862,3.2078,2366.1,2365.7,0.42267]
[1726236422069,3.2078,2366.1,2365.3,4.08]
[1726236422273,0.42271,2365.6,2365.2,3.63056]
[1726236422571,4.26448,2365.8,2365.2,3.2078]
[1726236422869,0.42275,2365.3,2365.2,3.2078]
[1726236423258,0.4228,2365.1,2364.7,7.2878]
[1726236423472,1.05689,2365.3,2364.7,7.71065]
[1726236423670,0.3905,2365.7,2365.0,3.2078]
[1726236423870,0.3905,2365.7,2365.3,3.2078]
[1726236424185,0.3905,2365.7,2365.6,0.4227]
[1726236424474,3.2078,2366.0,2365.8,0.42266]
[1726236424660,3.2078,2366.1,2365.7,0.42268]
[1726236424861,3.2078,2366.1,2365.6,4.08]
[1726236425171,3.2078,2366.1,2365.9,0.42264]
[1726236425359,3.2078,2366.1,2365.6,4.08]
[1726236425360,3.2078,2366.1,2365.8,0.42265]
[1726236425675,3.2078,2366.1,2365.6,5.13673]
[1726236425873,0.3905,2366.2,2366.0,0.42263]
[1726236426175,0.3905,2366.2,2366.1,0.42261]
[1726236426366,3.63031,2366.7,2366.0,1.05658]
[1726236426569,4.26409,2366.7,2366.1,3.2078]
[1726236426770,3.2078,2366.4,2366.2,0.42258]
[1726236426970,0.7736,2366.9,2365.9,4.4816]
[1726236426971,0.7736,2366.9,2366.1,3.2078]
[1726236427284,3.2078,2366.7,2366.2,4.08]
[1726236427585,3.2078,2366.7,2366.4,0.42256]
[1726236427586,3.63031,2366.7,2366.4,0.42256]
[1726236427767,3.2078,2366.7,2366.2,4.08]
[1726236427971,3.2078,2366.7,2366.5,0.42253]
[1726236428168,3.63032,2366.7,2366.4,0.42255]
[1726236428369,3.63032,2366.7,2366.2,4.08]
[1726236428370,3.2078,2366.7,2366.3,0.42256]
[1726236428570,0.42253,2366.6,2366.4,0.42255]
[1726236428766,0.42252,2366.6,2366.2,4.08]
[1726236428975,3.2078,2366.7,2366.2,4.08]
[1726236429164,4.26408,2366.7,2366.3,0.42257]
[1726236429369,0.42254,2366.6,2366.3,0.42257]
[1726236429666,3.2078,2366.7,2366.1,1.05653]
[1726236429866,0.7736,2366.9,2366.3,3.2078]
[1726236430166,0.7736,2366.9,2365.8,0.42266]
[1726236430167,0.42261,2366.1,2365.8,0.42266]
[1726236430367,3.2078,2366.4,2365.7,3.2078]
[1726236430569,0.7746,2366.3,2365.7,3.2078]
[1726236430974,3.2078,2366.2,2365.7,3.2078]
[1726236431471,0.7746,2366.3,2366.0,0.42261]
[1726236431667,0.7746,2366.3,2365.7,3.2078]
[1726236431867,3.2078,2366.2,2366.0,0.42262]
[1726236432075,3.2078,2366.2,2365.6,7.2878]
[1726236432277,3.2078,2366.2,2366.0,0.42262]
[1726236432473,0.4226,2366.2,2365.9,3.63044]
[1726236432671,0.7746,2366.3,2365.9,3.63044]
[1726236432870,0.4226,2366.2,2365.9,3.63044]
[1726236433084,0.7746,2366.3,2365.9,3.63044]
[1726236433282,0.42261,2366.2,2365.9,3.63044]
[1726236433579,3.2078,2366.9,2366.1,4.08]
[1726236433871,1.05622,2366.8,2366.2,3.2078]
[1726236434074,0.4225,2366.8,2366.2,3.2078]
[1726236434270,0.4225,2366.8,2366.1,4.08]
[1726236434271,0.42251,2366.7,2366.4,0.42256]
[1726236434472,1.43985,2366.8,2366.1,4.08]
[1726236434676,0.42255,2366.5,2366.1,4.5026]
[1726236434865,4.64765,2366.8,2366.1,4.5026]
[1726236435068,1.05632,2366.6,2366.0,0.3775]
[1726236435268,0.42255,2366.5,2366.1,0.42261]
[1726236435470,0.42255,2366.5,2366.0,3.5853]
[1726236435673,4.64765,2366.8,2366.0,3.5853]
[1726236435674,1.05627,2366.7,2366.0,3.5853]
[1726236435868,0.42257,2366.4,2366.0,3.5853]
[1726236436279,1.05631,2366.6,2366.1,0.4226]
[1726236436280,0.42255,2366.5,2366.1,0.4226]
[1726236436479,0.42256,2366.4,2366.0,3.5853]
[1726236436678,1.05631,2366.6,2366.0,3.5853]
[1726236436870,0.42266,2365.8,2365.7,3.2078]
[1726236437078,0.42266,2365.8,2365.4,0.42273]
[1726236437079,0.42268,2365.8,2365.4,0.42273]
[1726236437278,3.2078,2366.2,2365.6,0.4227]
[1726236437279,0.3759,2365.7,2365.6,0.4227]
[1726236437575,0.79859,2365.7,2365.3,4.08]
[1726236437774,0.79859,2365.7,2365.4,0.42273]
[1726236437970,0.3759,2365.7,2365.5,0.42272]
[1726236438176,0.3759,2365.7,2365.4,3.2078]
[1726236438376,0.3759,2365.7,2365.6,0.4227]
[1726236438582,0.42265,2365.9,2365.4,7.435]
[1726236438882,0.42266,2365.8,2365.5,0.42271]
[1726236439085,0.42265,2365.9,2365.6,0.42269]
[1726236439288,1.46329,2366.0,2365.3,4.08]